bitfinex-derivatives/quotes_SOLF0:USTF0_20250520
["timestamp","ask_amount","ask_price","bid_price","bid_amount"]
[1747749310180,6.0275,165.84,165.83,0.04313259]
[1747749311186,2.0181927,165.86,165.78,1.50644576]
[1747749311482,1.9474,165.85,165.78,1.50644576]
[1747749311689,6.0289,165.81,165.78,1.50644576]
[1747749311882,72.0,165.8,165.78,1.50644576]
[1747749312381,78.0292,165.8,165.77,0.04614037]
[1747749312585,72.0,165.8,165.77,0.04614037]
[1747749312785,0.04049834,165.81,165.8,6.029]
[1747749312981,0.04049834,165.81,165.77,0.04614037]
[1747749315075,16.19964808,165.8,165.71,1.50644576]
[1747749315274,76.0399,165.79,165.71,1.50644576]
[1747749315982,0.03987931,165.77,165.73,0.04026705]
[1747749317086,0.03987931,165.77,165.75,6.0305]
[1747749317283,0.03987931,165.77,165.73,0.04026705]
[1747749317589,6.07007931,165.77,165.73,6.07156705]
[1747749318291,0.03987931,165.77,165.73,0.04026705]
[1747749318893,0.03987931,165.77,165.76,6.0304]
[1747749320185,0.03987931,165.77,165.75,6.0307]
[1747749320693,0.03987931,165.77,165.76,6.0304]
[1747749322305,0.03987931,165.77,165.73,0.04026705]
[1747749322803,6.0308,165.76,165.73,0.04026705]
[1747749323004,0.03987931,165.77,165.73,0.04026705]
[1747749324002,6.0312,165.74,165.73,0.04026705]
[1747749327501,6.0312,165.74,165.73,6.705e-05]
[1747749328908,6.0338,165.67,165.65,72.04]
[1747749329304,72.06,165.72,165.65,72.04]
[1747749329815,6.0334,165.68,165.67,0.04508215]
[1747749330908,6.0331,165.69,165.67,0.04508215]
[1747749331305,0.04174395,165.7,165.67,0.04508215]
[1747749331607,72.08,165.79,165.67,0.04508215]
[1747749331912,2.0051,165.83,165.68,16.19964808]
[1747749332108,72.08,165.85,165.72,16.19964808]
[1747749332306,72.08,165.85,165.73,74.1208]
[1747749332508,6.028,165.83,165.73,74.1208]
[1747749332712,0.04270152,165.8,165.76,0.03818151]
[1747749333114,78.1073,165.85,165.8,6.0287]
[1747749333320,6.0273,165.85,165.8,6.0287]
[1747749333514,11.15099045,165.87,165.78,72.08]
[1747749333715,17.17779045,165.87,165.82,6.0279]
[1747749334011,72.08,165.89,165.78,72.08]
[1747749334212,0.03950534,165.85,165.82,0.0399317]
[1747749334616,0.03950534,165.85,165.82,6.0678317]
[1747749334807,0.03950534,165.85,165.82,0.0399317]
[1747749335905,6.0278,165.84,165.82,0.0399317]
[1747749336118,0.03950534,165.85,165.82,0.0399317]
[1747749336518,0.03950534,165.85,165.83,6.0279]
[1747749337214,0.03950534,165.85,165.82,6.0681317]
[1747749338618,71.84,165.94,165.83,71.84]
[1747749338813,71.84,165.94,165.83,73.8484]
[1747749339013,6.0258,165.89,165.85,6.0269]
[1747749339213,71.84,165.94,165.83,73.8484]
[1747749339615,0.04333188,165.9,165.87,0.04322923]
[1747749340120,6.0261,165.88,165.87,0.04322923]
[1747749343123,0.04333188,165.9,165.87,0.04322923]
[1747749343621,0.04333188,165.9,165.87,6.06952923]
[1747749344026,0.04333188,165.9,165.88,6.0261]
[1747749344322,0.04333188,165.9,165.87,0.04322923]
[1747749344723,0.04333188,165.9,165.88,6.0261]
[1747749345823,0.04333188,165.9,165.89,6.0257]
[1747749346432,71.82,165.97,165.91,6.025]
[1747749346433,6.0243,165.94,165.91,6.025]
[1747749346625,71.82,165.97,165.87,1.8965]
[1747749346924,6.0235,165.95,165.91,6.0247]
[1747749347425,0.03827742,165.95,165.92,6.0244]
[1747749348124,6.0242,165.94,165.91,0.04463884]
[1747749348427,0.03827742,165.95,165.91,0.04463884]
[1747749348631,0.03827742,165.95,165.92,6.0244]
[1747749350023,6.06207742,165.95,165.91,6.06953884]
[1747749350234,0.03827742,165.95,165.91,0.04463884]
[1747749350629,0.03827742,165.95,165.92,6.0243]
[1747749350928,0.03827742,165.95,165.91,0.04463884]
[1747749352428,0.03827742,165.95,165.93,6.024]
[1747749352730,0.03827742,165.95,165.91,0.04463884]
[1747749353026,0.03827742,165.95,165.94,6.0239]
[1747749353228,0.03827742,165.95,165.91,0.04463884]
[1747749353930,6.0245,165.93,165.91,0.04463884]
[1747749354132,0.03827742,165.95,165.91,0.04463884]
[1747749354528,6.0246,165.92,165.91,0.04463884]
[1747749355933,0.03827742,165.95,165.83,72.78507032]
[1747749356133,1.9106,165.94,165.83,72.78507032]
[1747749356532,1.9106,165.94,165.83,1.00507032]
[1747749357029,0.04447971,165.9,165.87,0.04617444]
[1747749357228,6.0261,165.88,165.87,0.04617444]
[1747749359235,6.0258,165.89,165.87,0.04617444]
[1747749360229,6.0261,165.88,165.87,0.04617444]
[1747749360434,16.19964808,165.89,165.76,1.00507032]
[1747749360730,71.8,165.91,165.76,1.00507032]
[1747749360731,16.19964808,165.85,165.76,1.00507032]
[1747749360932,71.8,165.84,165.76,1.00507032]
[1747749361129,75.6527,165.84,165.76,1.00507032]
[1747749361323,6.0301,165.77,165.76,1.00507032]
[1747749361831,6.07579443,165.78,165.76,1.00507032]
[1747749362030,0.03998411,165.79,165.76,1.00507032]
[1747749362228,6.06958411,165.79,165.76,1.04707008]
[1747749362636,0.03998411,165.79,165.76,1.04707008]
[1747749363132,0.03998411,165.79,165.76,0.04199976]
[1747749363337,6.0301,165.77,165.76,0.04199976]
[1747749363634,0.03998411,165.79,165.76,0.04199976]
[1747749364134,6.06958411,165.79,165.76,0.04199976]
[1747749364434,0.03998411,165.79,165.76,0.04199976]
[1747749364835,6.06948411,165.79,165.76,0.04199976]
[1747749365031,0.03998411,165.79,165.76,6.07209976]
[1747749365534,6.06958411,165.79,165.76,0.04199976]
[1747749366035,6.0301,165.77,165.76,0.04199976]
[1747749366233,71.83998411,165.79,165.69,71.8]
[1747749366537,6.0311,165.75,165.67,2.0477]
[1747749366837,6.0311,165.75,165.71,6.032]
[1747749367037,71.8,165.79,165.71,6.032]
[1747749367337,0.04259128,165.77,165.73,0.04130364]
[1747749367740,6.0312,165.75,165.73,0.04130364]
[1747749368433,0.04259128,165.77,165.73,0.04130364]
[1747749368938,6.0312,165.74,165.73,0.04130364]
[1747749369739,6.0307,165.76,165.73,0.04130364]
[1747749370237,0.04259128,165.77,165.73,0.04130364]
[1747749370729,6.0312,165.74,165.73,0.04130364]
[1747749370934,0.04259128,165.77,165.73,0.04130364]
[1747749371335,6.0307,165.76,165.73,0.04130364]
[1747749371536,0.04259128,165.77,165.73,0.04130364]
[1747749371839,6.031,165.75,165.73,0.04130364]
[1747749372041,0.04259128,165.77,165.73,0.04130364]
[1747749372540,6.0307,165.76,165.73,0.04130364]
[1747749372838,0.04259128,165.77,165.73,0.04130364]
[1747749373042,0.04259128,165.77,165.74,6.0309]
[1747749373442,0.04259128,165.77,165.73,0.04130364]
[1747749373643,6.031,165.75,165.73,0.04130364]
[1747749373839,0.04259128,165.77,165.73,0.04130364]
[1747749374334,6.0305,165.76,165.73,0.04130364]
[1747749374535,0.04259128,165.77,165.73,0.04130364]
[1747749374841,0.04259128,165.77,165.75,6.0307]
[1747749375043,0.04259128,165.77,165.73,0.04130364]
[1747749375237,0.04259128,165.77,165.76,6.0304]
[1747749375638,0.04259128,165.77,165.74,6.0311]
[1747749375840,0.04259128,165.77,165.73,1.95100364]
[1747749376140,0.04259128,165.77,165.75,6.0306]
[1747749376440,0.04259128,165.77,165.73,1.95100364]
[1747749376934,0.04259128,165.77,165.73,0.04130364]
[1747749377835,6.0311,165.75,165.73,0.04130364]
[1747749378031,0.04259128,165.77,165.73,0.04130364]
[1747749378448,6.0312,165.74,165.73,0.04130364]
[1747749379038,6.0307,165.76,165.73,0.04130364]
[1747749379240,0.04259128,165.77,165.73,0.04130364]
[1747749379441,6.0312,165.74,165.73,0.04130364]
[1747749379641,6.0312,165.74,165.73,3.64e-06]
[1747749382043,71.66,165.76,165.73,3.64e-06]
[1747749382245,0.04259128,165.77,165.73,3.64e-06]
[1747749382445,6.0312,165.74,165.73,3.64e-06]
[1747749382942,0.04259128,165.77,165.73,3.64e-06]
[1747749383742,6.07289128,165.77,165.74,6.031]
[1747749384549,0.04259128,165.77,165.75,6.0307]
[1747749385256,0.04259128,165.77,165.73,3.64e-06]
[1747749385750,6.07279128,165.77,165.73,3.64e-06]
[1747749385951,0.04259128,165.77,165.73,3.64e-06]
[1747749386845,6.0312,165.74,165.73,3.64e-06]
[1747749387242,0.04259128,165.77,165.73,3.64e-06]
[1747749387542,0.04259128,165.77,165.74,6.0309]
[1747749387951,0.04259128,165.77,165.73,3.64e-06]
[1747749388653,0.04259128,165.77,165.75,6.0306]
[1747749389949,0.04259128,165.77,165.76,6.0304]
[1747749390155,0.04259128,165.77,165.74,2.0576]
[1747749390547,0.04259128,165.77,165.73,3.64e-06]
[1747749391144,6.0305,165.76,165.73,3.64e-06]
[1747749391551,0.04259128,165.77,165.73,3.64e-06]
[1747749391846,6.07299128,165.77,165.74,6.031]
[1747749392352,0.04259128,165.77,165.74,6.031]
[1747749393060,0.04259128,165.77,165.75,6.0307]
[1747749393256,0.04259128,165.77,165.73,3.64e-06]
[1747749394742,0.04259128,165.77,165.76,6.0304]
[1747749395553,6.07269128,165.77,165.74,6.0309]
[1747749395750,0.04259128,165.77,165.73,3.64e-06]
[1747749396050,6.0308,165.75,165.73,3.64e-06]
[1747749396250,0.04259128,165.77,165.73,3.64e-06]
[1747749397154,6.031,165.75,165.73,3.64e-06]
[1747749398048,6.0307,165.76,165.73,3.64e-06]
[1747749398253,0.04259128,165.77,165.73,3.64e-06]
[1747749398654,6.0305,165.76,165.73,6.03140364]
[1747749399857,6.0309,165.75,165.73,3.64e-06]
[1747749400053,0.04259128,165.77,165.73,3.64e-06]
[1747749400662,6.0312,165.74,165.73,3.64e-06]
[1747749401856,77.5112,165.74,165.73,3.64e-06]
[1747749406569,6.0312,165.74,165.73,3.64e-06]
[1747749407166,6.0305,165.76,165.73,3.64e-06]
[1747749407762,6.0305,165.76,165.73,6.03130364]
[1747749407965,6.0309,165.75,165.73,3.64e-06]
[1747749408160,0.04259128,165.77,165.73,3.64e-06]
[1747749408654,6.0312,165.74,165.73,3.64e-06]
[1747749408969,0.04259128,165.77,165.73,3.64e-06]
[1747749409169,6.07279128,165.77,165.73,3.64e-06]
[1747749409465,6.07279128,165.77,165.73,1.50826137]
[1747749409658,0.04259128,165.77,165.73,73.00826137]
[1747749409858,0.04259128,165.77,165.74,5.9838]
[1747749410054,6.0292,165.8,165.77,6.0299]
[1747749410865,6.0286,165.82,165.79,6.0294]
[1747749411064,71.5,165.84,165.79,0.04162894]
[1747749411261,0.03931914,165.82,165.79,0.04162894]
[1747749411868,0.03931914,165.82,165.8,6.0287]
[1747749412073,0.03931914,165.82,165.8,7.53632338]
[1747749412569,0.03931914,165.82,165.8,1.50762338]
[1747749412966,6.029,165.8,165.79,0.04162894]
[1747749415867,0.03931914,165.82,165.79,0.04162894]
[1747749416268,0.03931914,165.82,165.8,6.0288]
[1747749416470,0.03931914,165.82,165.79,0.04162894]
[1747749416773,6.06781914,165.82,165.79,0.04162894]
[1747749417173,0.03931914,165.82,165.79,0.04162894]
[1747749417374,0.03931914,165.82,165.8,6.0287]
[1747749418275,0.03931914,165.82,165.79,0.04162894]
[1747749418768,0.03931914,165.82,165.81,6.0286]
[1747749418974,0.03931914,165.82,165.79,0.04162894]
[1747749419374,0.03931914,165.82,165.81,6.0286]
[1747749420280,0.03931914,165.82,165.8,1.50744459]
[1747749421071,0.03931914,165.82,165.79,0.04162894]
[1747749421277,0.03931914,165.82,165.8,6.029]
[1747749421471,0.03931914,165.82,165.79,0.04162894]
[1747749421871,71.46,165.92,165.79,0.04162894]
[1747749422070,6.027,165.86,165.78,71.48]
[1747749422273,6.027,165.86,165.79,1.50720745]
[1747749422779,0.04309623,165.84,165.81,0.04423762]
[1747749422975,0.03951173,165.84,165.81,0.04118452]
[1747749423170,71.46,165.92,165.81,0.04118452]
[1747749423375,71.46,165.92,165.8,12.0579]
[1747749423577,71.46,165.92,165.8,28.25754808]
[1747749423775,6.0252,165.91,165.81,1.9511]
[1747749423978,18.17924808,165.95,165.81,1.9511]
[1747749424280,0.0435794,165.9,165.86,0.04608317]
[1747749424978,6.0258,165.89,165.86,0.04608317]
[1747749425366,6.0690794,165.9,165.86,0.04608317]
[1747749425566,0.0435794,165.9,165.86,0.04608317]
[1747749425872,0.0435794,165.9,165.89,6.0257]
[1747749426274,0.0435794,165.9,165.86,0.04608317]
[1747749426474,0.0435794,165.9,165.87,6.0264]
[1747749426670,0.0435794,165.9,165.86,0.04608317]
[1747749426872,0.0435794,165.9,165.86,6.07278317]
[1747749427083,0.0435794,165.9,165.86,0.04608317]
[1747749428179,0.0435794,165.9,165.89,6.0257]
[1747749428787,0.0435794,165.9,165.89,77.4657]
[1747749430195,0.0435794,165.9,165.89,71.44]
[1747749430381,0.0435794,165.9,165.86,2.05358317]
[1747749430598,0.0435794,165.9,165.86,0.04608317]
[1747749430792,6.0264,165.87,165.86,0.04608317]
[1747749430997,71.2,165.89,165.82,1.00507032]
[1747749431196,1.9429,165.88,165.82,1.00507032]
[1747749431806,10.14720334,165.84,165.8,1.34017864]
[1747749431994,6.0286,165.81,165.8,1.38337451]
[1747749432197,10.14720334,165.81,165.72,71.2]
[1747749432495,6.0294,165.79,165.72,71.2]
[1747749432696,10.14720334,165.81,165.72,71.2]
[1747749432897,71.2,165.83,165.72,71.2]
[1747749433098,0.04478059,165.82,165.79,0.03891618]
[1747749433595,10.14720334,165.81,165.68,71.2]
[1747749433802,71.2,165.83,165.68,71.2]
[1747749433803,16.25186827,165.8,165.68,71.2]
[1747749434005,1.9701,165.79,165.68,71.2]
[1747749434206,71.2,165.78,165.68,71.2]
[1747749434708,0.0459203,165.75,165.71,0.04247607]
[1747749435608,0.0459203,165.75,165.74,6.0312]
[1747749436309,6.0284,165.82,165.79,6.0293]
[1747749437110,6.0287,165.81,165.74,2.065]
[1747749437409,0.04158537,165.8,165.76,0.04211087]
[1747749437911,0.04158537,165.8,165.78,6.0296]
[1747749438909,0.04158537,165.8,165.76,0.04211087]
[1747749438910,0.04158537,165.8,165.79,6.0294]
[1747749440012,0.04158537,165.8,165.76,0.04211087]
[1747749440512,0.04158537,165.8,165.79,6.0294]
[1747749443115,0.04158537,165.8,165.76,0.04211087]
[1747749443607,0.04158537,165.8,165.78,6.0295]
[1747749443810,0.04158537,165.8,165.76,0.04211087]
[1747749444711,0.04158537,165.8,165.77,6.03]
[1747749444910,0.04158537,165.8,165.76,0.04211087]
[1747749445310,6.0301,165.77,165.76,0.04211087]
[1747749446411,6.0314,165.74,165.69,73.2225]
[1747749446611,6.0314,165.74,165.7,6.0324]
[1747749446904,6.0314,165.74,165.69,73.2225]
[1747749447109,71.22,165.77,165.69,2.0025]
[1747749447315,0.04627048,165.75,165.71,0.04002915]
[1747749447513,6.0319,165.72,165.71,0.04002915]
[1747749449615,0.04627048,165.75,165.71,0.04002915]
[1747749450011,0.04627048,165.75,165.73,6.0313]
[1747749450212,0.04627048,165.75,165.71,0.04002915]
[1747749450519,0.04627048,165.75,165.71,71.26002915]
[1747749450715,0.04627048,165.75,165.74,6.0312]
[1747749453120,5.9982,165.86,165.73,1.50808798]
[1747749453324,77.2382,165.86,165.73,1.50808798]
[1747749453522,6.0279,165.83,165.73,1.50808798]
[1747749453708,77.2382,165.86,165.73,1.50808798]
[1747749453914,77.2382,165.86,165.8,6.029]
[1747749454115,0.04128082,165.85,165.81,0.04423473]
[1747749454815,16.25186827,165.84,165.74,1.50808798]
[1747749455918,6.0311,165.75,165.72,1.50808798]
[1747749456122,6.07751999,165.75,165.72,1.55353896]
[1747749456419,0.04641999,165.75,165.73,6.0315]
[1747749456722,0.04641999,165.75,165.72,1.55353896]
[1747749458120,0.04641999,165.75,165.74,6.0312]
[1747749459725,0.04641999,165.75,165.73,1.50808798]
[1747749460421,6.07751999,165.75,165.72,1.55353896]
[1747749461026,6.07751999,165.75,165.72,7.58523896]
[1747749461728,0.04641999,165.75,165.74,6.0312]
[1747749464345,8.1253,165.86,165.81,6.0283]
[1747749464532,2.0984,165.86,165.81,6.0283]
[1747749464825,2.0984,165.86,165.77,71.02]
[1747749465018,6.0273,165.85,165.81,6.0286]
[1747749465320,6.06808964,165.85,165.81,0.04371961]
[1747749465525,6.0276,165.84,165.81,0.04371961]
[1747749465727,0.04078964,165.85,165.81,0.04371961]
[1747749466327,6.0279,165.84,165.81,0.04371961]
[1747749466530,0.04078964,165.85,165.81,0.04371961]
[1747749466824,6.0283,165.82,165.81,0.04371961]
[1747749467032,87.25186827,165.84,165.78,1.50739483]
[1747749467222,87.25186827,165.84,165.7,72.9082]
[1747749467521,6.0301,165.77,165.73,6.0314]
[1747749467722,6.0301,165.77,165.7,72.9082]
[1747749468027,0.04407589,165.75,165.72,0.03894298]
[1747749468216,0.04596732,165.75,165.72,0.03818516]
[1747749468417,0.04596732,165.75,165.73,6.0315]
[1747749469029,0.04596732,165.75,165.74,6.0312]
[1747749470818,0.04596732,165.75,165.72,6.06978516]
[1747749471023,0.04596732,165.75,165.72,0.03818516]
[1747749471730,0.04596732,165.75,165.72,6.06978516]
[1747749472030,0.04596732,165.75,165.72,0.03818516]
[1747749472236,0.04596732,165.75,165.74,6.0312]
[1747749472529,0.04596732,165.75,165.72,0.03818516]
[1747749473826,0.04596732,165.75,165.72,6.06988516]
[1747749474332,0.04596732,165.75,165.72,0.03818516]
[1747749475427,6.0314,165.74,165.72,0.03818516]
[1747749475734,0.04596732,165.75,165.72,0.03818516]
[1747749476236,6.0315,165.73,165.72,0.03818516]
[1747749478433,72.929,165.74,165.63,1.33639917]
[1747749478628,18.25996827,165.73,165.63,1.33639917]
[1747749479339,0.03995726,165.7,165.66,0.04256865]
[1747749479536,71.02,165.69,165.66,0.04256865]
[1747749480139,6.0337,165.67,165.66,0.04256865]
[1747749480742,71.02,165.69,165.66,0.04256865]
[1747749482145,71.02,165.69,165.66,6.07656865]
[1747749482746,71.02,165.69,165.66,0.04256865]
[1747749484047,6.0337,165.67,165.66,0.04256865]
[1747749484639,6.0335,165.68,165.66,0.04256865]
[1747749485347,0.03995726,165.7,165.66,0.04256865]
[1747749485937,6.0337,165.67,165.66,0.04256865]
[1747749486339,0.03995726,165.7,165.66,0.04256865]
[1747749486540,0.03995726,165.7,165.67,6.0336]
[1747749486743,0.03995726,165.7,165.66,0.04256865]
[1747749487150,0.03995726,165.7,165.66,6.07656865]
[1747749487352,0.03995726,165.7,165.66,0.04256865]
[1747749487556,0.03995726,165.7,165.68,6.0332]
[1747749487753,0.03995726,165.7,165.66,0.04256865]
[1747749488158,0.03995726,165.7,165.69,6.033]
[1747749490551,0.03995726,165.7,165.67,1.9998]
[1747749491065,0.03995726,165.7,165.68,6.0332]
[1747749491651,0.03995726,165.7,165.69,6.033]
[1747749492863,6.0308,165.76,165.73,6.0313]
[1747749493564,70.82,165.77,165.69,2.0006]
[1747749493565,76.8502,165.77,165.69,2.0006]
[1747749493764,0.04429219,165.74,165.71,0.04000933]
[1747749494064,0.04429219,165.74,165.72,6.0319]
[1747749494265,0.04429219,165.74,165.71,0.04000933]
[1747749494668,0.04429219,165.74,165.71,6.07190933]
[1747749494964,0.04429219,165.74,165.71,0.04000933]
[1747749495265,0.04429219,165.74,165.72,6.0318]
[1747749495668,0.04429219,165.74,165.71,0.04000933]
[1747749495966,0.04429219,165.74,165.73,6.0315]
[1747749497760,0.04429219,165.74,165.71,0.04000933]
[1747749497961,6.0317,165.73,165.71,0.04000933]
[1747749498270,0.04429219,165.74,165.71,0.04000933]
[1747749498969,0.04429219,165.74,165.72,6.0317]
[1747749499159,0.04429219,165.74,165.71,0.04000933]
[1747749500268,6.07569219,165.74,165.71,6.07210933]
[1747749501570,0.04429219,165.74,165.73,6.0315]
[1747749503771,6.0316,165.73,165.71,0.04000933]
[1747749504569,6.0319,165.72,165.71,0.04000933]
[1747749505670,6.0319,165.72,165.66,1.00349214]
[1747749505671,76.84,165.72,165.66,1.00349214]
[1747749505872,16.25186827,165.7,165.64,1.33639917]
[1747749506064,6.0352,165.63,165.62,2.00592391]
[1747749506971,0.04139673,165.64,165.61,0.04629041]
[1747749507474,6.0352,165.63,165.61,0.04629041]
[1747749508677,6.0355,165.62,165.61,0.04629041]
[1747749509680,6.0352,165.63,165.61,0.04629041]
[1747749510578,6.0355,165.62,165.61,0.04629041]
[1747749510980,0.04139673,165.64,165.61,0.04629041]
[1747749511178,6.0353,165.63,165.61,0.04629041]
[1747749511478,0.04139673,165.64,165.61,0.04629041]
[1747749511671,6.0352,165.63,165.61,0.04629041]
[1747749511979,0.04139673,165.64,165.61,0.04629041]
[1747749512479,6.0355,165.62,165.61,0.04629041]
[1747749513579,6.037,165.58,165.57,1.50928546]
[1747749514269,6.0376,165.57,165.52,1.50928546]
[1747749514683,0.03892753,165.56,165.53,6.07695833]
[1747749515075,0.03892753,165.56,165.53,0.03835833]
[1747749515882,6.0381,165.55,165.53,0.03835833]
[1747749516282,0.03892753,165.56,165.53,0.03835833]
[1747749516585,6.0385,165.54,165.53,0.03835833]
[1747749517684,70.89892753,165.56,165.48,6.0406]
[1747749517883,70.86,165.56,165.45,74.7717]
[1747749518077,70.86,165.56,165.49,6.04]
[1747749518476,70.86,165.56,165.45,74.7717]
[1747749518685,6.08443621,165.52,165.49,0.04534744]
[1747749518885,0.04513621,165.52,165.49,0.04534744]
[1747749519287,6.0399,165.5,165.49,0.04534744]
[1747749519793,6.0413,165.47,165.43,6.0423]
[1747749519980,70.86,165.51,165.43,6.0423]
[1747749520181,70.86,165.51,165.42,70.86]
[1747749520182,16.25186827,165.5,165.41,6.0431]
[1747749520387,16.25186827,165.5,165.38,70.86]
[1747749520594,2.0548,165.49,165.38,70.86]
[1747749520782,0.03881292,165.45,165.42,0.04615202]
[1747749520987,70.64,165.44,165.42,0.04615202]
[1747749521187,0.03881292,165.45,165.42,0.04615202]
[1747749521990,6.08061292,165.45,165.42,0.04615202]
[1747749522794,0.03881292,165.45,165.42,6.08865202]
[1747749522985,0.03881292,165.45,165.42,0.04615202]
[1747749523384,0.03881292,165.45,165.44,6.0421]
[1747749524086,0.03881292,165.45,165.43,6.0424]
[1747749524589,6.08081292,165.45,165.42,0.04615202]
[1747749524894,0.03881292,165.45,165.42,0.04615202]
[1747749525190,6.0424,165.44,165.42,0.04615202]
[1747749525694,0.03881292,165.45,165.42,0.04615202]
[1747749525894,6.0425,165.43,165.42,0.04615202]
[1747749526394,6.0425,165.43,165.36,6.0449]
[1747749526395,70.68,165.43,165.36,6.0449]
[1747749527295,0.04381326,165.41,165.38,0.04496458]
[1747749527594,6.0439,165.4,165.38,0.04496458]
[1747749528288,6.0439,165.39,165.38,0.04496458]
[1747749528490,0.04381326,165.41,165.38,0.04496458]
[1747749528689,6.08701326,165.41,165.38,0.04496458]
[1747749528988,0.04381326,165.41,165.38,6.08906458]
[1747749530489,0.04381326,165.41,165.38,0.04496458]
[1747749530895,6.0439,165.39,165.38,0.04496458]
[1747749534492,0.04381326,165.41,165.29,1.8973]
[1747749534493,16.29568153,165.41,165.29,1.8973]
[1747749534685,70.72,165.4,165.29,1.8973]
[1747749534996,70.72,165.4,165.31,6.0466]
[1747749535197,6.0457,165.35,165.31,6.0466]
[1747749535493,0.04184609,165.35,165.33,6.046]
[1747749536298,0.04184609,165.35,165.32,6.0463]
[1747749536802,6.08744609,165.35,165.32,6.0463]
[1747749537197,6.08744609,165.35,165.33,6.0461]
[1747749537392,0.04184609,165.35,165.33,6.0461]
[1747749538298,0.04184609,165.35,165.34,6.0458]
[1747749539391,76.7637,165.4,165.36,6.0447]
[1747749539592,70.72,165.4,165.36,6.0447]
[1747749540502,70.76494518,165.4,165.36,6.08722195]
[1747749540796,70.76494518,165.4,165.36,0.04252195]
[1747749542600,6.0445,165.38,165.36,0.04252195]
[1747749542900,70.76494518,165.4,165.36,0.04252195]
[1747749543195,76.80864518,165.4,165.37,6.0446]
[1747749543504,76.80864518,165.4,165.36,0.04252195]
[1747749543800,6.0441,165.39,165.36,6.08732195]
[1747749544001,70.76494518,165.4,165.36,0.04252195]
[1747749544408,6.0447,165.37,165.36,0.04252195]
[1747749547389,6.0466,165.32,165.29,1.8973]
[1747749547592,2.0265,165.39,165.3,6.047]
[1747749547793,6.0465,165.33,165.29,1.8973]
[1747749548100,2.0265,165.39,165.29,1.8973]
[1747749548300,0.03961564,165.36,165.32,0.0389072]
[1747749549404,6.0461,165.33,165.32,0.0389072]
[1747749550103,6.0459,165.34,165.32,0.0389072]
[1747749550402,0.03961564,165.36,165.32,0.0389072]
[1747749550611,70.51961564,165.36,165.32,0.0389072]
[1747749551705,6.0461,165.33,165.32,0.0389072]
[1747749551909,70.51961564,165.36,165.32,0.0389072]
[1747749552106,6.0461,165.33,165.32,0.0389072]
[1747749555814,70.51961564,165.36,165.32,6.0852072]
[1747749556001,70.51961564,165.36,165.32,0.0389072]
[1747749556302,70.51961564,165.36,165.34,6.0457]
[1747749556508,0.03961564,165.36,165.32,0.0389072]
[1747749557106,0.03961564,165.36,165.35,6.0454]
[1747749557997,70.5,165.4,165.37,6.0445]
[1747749558202,70.5,165.4,165.33,3.9183]
[1747749558408,70.5,165.44,165.33,3.9183]
[1747749558909,0.04516511,165.4,165.37,0.03903742]
[1747749559409,6.08906511,165.4,165.38,6.0443]
[1747749559607,6.08906511,165.4,165.37,0.03903742]
[1747749560114,6.08906511,165.4,165.37,6.08353742]
[1747749560511,0.04516511,165.4,165.37,0.03903742]
[1747749562611,6.0442,165.39,165.37,0.03903742]
[1747749563005,0.04516511,165.4,165.37,0.03903742]
[1747749563306,0.04516511,165.4,165.37,6.08343742]
[1747749563509,0.04516511,165.4,165.37,0.03903742]
[1747749563704,6.0442,165.39,165.37,0.03903742]
[1747749564100,0.04516511,165.4,165.37,0.03903742]
[1747749564309,6.0443,165.38,165.37,0.03903742]
[1747749564510,0.04516511,165.4,165.37,0.03903742]
[1747749564812,6.08886511,165.4,165.37,6.08353742]
[1747749565003,0.04516511,165.4,165.37,0.03903742]
[1747749565312,6.08876511,165.4,165.37,6.08353742]
[1747749568614,6.044,165.39,165.37,6.08353742]
[1747749568814,0.04516511,165.4,165.37,6.08353742]
[1747749569013,0.04516511,165.4,165.39,6.0439]
[1747749569220,0.04516511,165.4,165.37,0.03903742]
[1747749569821,0.04516511,165.4,165.38,7.55551343]
[1747749570119,0.04516511,165.4,165.38,1.51141343]
[1747749571021,6.0439,165.39,165.38,1.51141343]
[1747749571218,6.0439,165.39,165.37,0.03903742]
[1747749571418,0.04516511,165.4,165.37,0.03903742]
[1747749573915,6.0443,165.38,165.37,0.03903742]
[1747749577425,6.0441,165.39,165.37,0.03903742]
[1747749578226,0.04516511,165.4,165.37,0.03903742]
[1747749578719,76.5422,165.44,165.41,6.043]
[1747749579821,76.5883787,165.44,165.41,6.0888142]
[1747749580427,6.0883787,165.44,165.41,6.0888142]
[1747749580634,0.0461787,165.44,165.42,6.0428]
[1747749581125,0.0461787,165.44,165.41,6.0888142]